[Event "*** Titled Tuesday Blitz"]
[Site "Chess.com"]
[Date "2020.05.05"]
[Round "10"]
[White "ErikRonka"]
[Black "ketster"]
[Result "1-0"]
[WhiteElo "2426"]
[BlackElo "2277"]
[TimeControl "180+1"]
[EndTime "12:00:15 PDT"]
[Termination "ErikRonka won on time"]

1. Nf3 {[%clk 0:03:00.9]} 1... Nf6 {[%clk 0:02:58.5]} 2. c4 {[%clk 0:02:56.4]}
2... e6 {[%clk 0:02:57]} 3. g3 {[%clk 0:02:56.3]} 3... d5 {[%clk 0:02:48.1]} 4.
Bg2 {[%clk 0:02:56.1]} 4... d4 {[%clk 0:02:48.1]} 5. O-O {[%clk 0:02:53.5]} 5...
c5 {[%clk 0:02:47.6]} 6. e3 {[%clk 0:02:42.9]} 6... Nc6 {[%clk 0:02:47]} 7. exd4
{[%clk 0:02:41.3]} 7... cxd4 {[%clk 0:02:43.7]} 8. d3 {[%clk 0:02:36.5]} 8... h6
{[%clk 0:02:34]} 9. Bf4 {[%clk 0:02:20.1]} 9... Be7 {[%clk 0:02:28.6]} 10. Ne5
{[%clk 0:02:14.4]} 10... Nxe5 {[%clk 0:02:22.7]} 11. Bxe5 {[%clk 0:02:15.3]}
11... O-O {[%clk 0:02:21.7]} 12. Nd2 {[%clk 0:01:58.3]} 12... Ne8 {[%clk
0:01:39.4]} 13. Nf3 {[%clk 0:01:15.2]} 13... Bf6 {[%clk 0:01:36.9]} 14. b4
{[%clk 0:01:14.2]} 14... Bxe5 {[%clk 0:01:25.9]} 15. Nxe5 {[%clk 0:01:14.2]}
15... Qd6 {[%clk 0:01:25.7]} 16. Re1 {[%clk 0:01:05.8]} 16... Qxb4 {[%clk
0:01:23.4]} 17. Rb1 {[%clk 0:01:02.7]} 17... Qe7 {[%clk 0:01:21.6]} 18. Nf3
{[%clk 0:00:57.4]} 18... Qd6 {[%clk 0:01:14.6]} 19. Re4 {[%clk 0:00:54.1]} 19...
Nf6 {[%clk 0:01:08.8]} 20. Rxd4 {[%clk 0:00:53.8]} 20... Qc7 {[%clk 0:01:04.2]}
21. Qe2 {[%clk 0:00:43.6]} 21... Nd7 {[%clk 0:00:49]} 22. Re4 {[%clk 0:00:35.9]}
22... Nc5 {[%clk 0:00:46.5]} 23. Re3 {[%clk 0:00:35]} 23... Rb8 {[%clk
0:00:40.8]} 24. d4 {[%clk 0:00:34.1]} 24... Na4 {[%clk 0:00:37]} 25. Ne5 {[%clk
0:00:30.7]} 25... Bd7 {[%clk 0:00:34.7]} 26. Reb3 {[%clk 0:00:26.3]} 26... b6
{[%clk 0:00:24]} 27. c5 {[%clk 0:00:15.9]} 27... bxc5 {[%clk 0:00:11.8]} 28.
Rxb8 {[%clk 0:00:15.4]} 28... Rxb8 {[%clk 0:00:07.9]} 29. Rxb8+ {[%clk
0:00:16.3]} 29... Qxb8 {[%clk 0:00:07.3]} 30. Nxd7 {[%clk 0:00:17]} 30... Qb1+
{[%clk 0:00:05.3]} 31. Qf1 {[%clk 0:00:15.6]} 31... Qxa2 {[%clk 0:00:04.5]} 32.
Nxc5 {[%clk 0:00:15.1]} 32... Nc3 {[%clk 0:00:04.4]} 33. h3 {[%clk 0:00:13.4]}
33... Ne2+ {[%clk 0:00:03.6]} 34. Kh2 {[%clk 0:00:13.2]} 34... Nxd4 {[%clk
0:00:04]} 35. Ne4 {[%clk 0:00:09.2]} 35... Nf5 {[%clk 0:00:03.6]} 36. Qd1 {[%clk
0:00:06.9]} 36... Qa5 {[%clk 0:00:02.6]} 37. Nd6 {[%clk 0:00:06]} 37... Ne7
{[%clk 0:00:02]} 38. Ne4 {[%clk 0:00:05.5]} 38... Qb6 {[%clk 0:00:02.1]} 39. Qd6
{[%clk 0:00:04.5]} 39... Qa5 {[%clk 0:00:02.4]} 40. Qxe7 {[%clk 0:00:04.2]}
40... Qb6 {[%clk 0:00:02.8]} 41. Qe8+ {[%clk 0:00:04.4]} 41... Kh7 {[%clk
0:00:02.7]} 42. Qxf7 {[%clk 0:00:05.3]} 42... Qd4 {[%clk 0:00:03.2]} 43. Qf3
{[%clk 0:00:05.4]} 43... Qe5 {[%clk 0:00:03.1]} 44. Qe3 {[%clk 0:00:06.3]} 44...
a5 {[%clk 0:00:03.2]} 45. Nd2 {[%clk 0:00:06]} 45... Qb2 {[%clk 0:00:02.3]} 46.
Be4+ {[%clk 0:00:05.7]} 46... Kh8 {[%clk 0:00:02.6]} 47. Nc4 {[%clk 0:00:05.5]}
47... Qb4 {[%clk 0:00:02.4]} 48. Ne5 {[%clk 0:00:05.3]} 48... a4 {[%clk
0:00:02.3]} 49. Ng6+ {[%clk 0:00:04.8]} 49... Kg8 {[%clk 0:00:02.3]} 50. Qf4
{[%clk 0:00:05]} 50... a3 {[%clk 0:00:01.8]} 51. Qc7 {[%clk 0:00:03.3]} 51... a2
{[%clk 0:00:01]} 52. Qd8+ {[%clk 0:00:03.5]} 52... Kf7 {[%clk 0:00:01.4]} 53.
Qf8+ {[%clk 0:00:03.6]} 1-0

[Event "*** Titled Tuesday Blitz"]
[Site "Chess.com"]
[Date "2020.05.05"]
[Round "10"]
[White "OK97"]
[Black "StegariuVlad"]
[Result "1-0"]
[WhiteElo "2727"]
[BlackElo "2545"]
[TimeControl "180+1"]
[EndTime "12:00:16 PDT"]
[Termination "OK97 won by resignation"]

1. e4 {[%clk 0:03:00.9]} 1... e5 {[%clk 0:02:59.7]} 2. Nf3 {[%clk 0:03:01]} 2...
Nc6 {[%clk 0:03:00]} 3. Bb5 {[%clk 0:03:01.3]} 3... a6 {[%clk 0:02:58.7]} 4. Ba4
{[%clk 0:03:01.6]} 4... Nf6 {[%clk 0:02:58.7]} 5. O-O {[%clk 0:03:01.9]} 5...
Be7 {[%clk 0:02:58.4]} 6. Re1 {[%clk 0:03:02.1]} 6... b5 {[%clk 0:02:58.4]} 7.
Bb3 {[%clk 0:03:02.5]} 7... d6 {[%clk 0:02:58.5]} 8. c3 {[%clk 0:03:02.7]} 8...
O-O {[%clk 0:02:58.1]} 9. h3 {[%clk 0:03:02.3]} 9... Nb8 {[%clk 0:02:56.9]} 10.
d4 {[%clk 0:03:01.8]} 10... Nbd7 {[%clk 0:02:56.6]} 11. Nbd2 {[%clk 0:03:01.3]}
11... Bb7 {[%clk 0:02:56.2]} 12. Bc2 {[%clk 0:03:01.8]} 12... Re8 {[%clk
0:02:55.2]} 13. Nf1 {[%clk 0:03:02.1]} 13... Bf8 {[%clk 0:02:54.7]} 14. Ng3
{[%clk 0:03:02.2]} 14... g6 {[%clk 0:02:54.6]} 15. a4 {[%clk 0:03:01.7]} 15...
Bg7 {[%clk 0:02:54]} 16. Bd3 {[%clk 0:02:54]} 16... c6 {[%clk 0:02:53.6]} 17.
Bg5 {[%clk 0:02:54]} 17... Qc7 {[%clk 0:02:52.9]} 18. Qd2 {[%clk 0:02:49.3]}
18... d5 {[%clk 0:02:52]} 19. dxe5 {[%clk 0:02:28.2]} 19... Nxe4 {[%clk
0:02:50.8]} 20. Bxe4 {[%clk 0:02:22.7]} 20... dxe4 {[%clk 0:02:50.4]} 21. Nxe4
{[%clk 0:02:23.6]} 21... Nxe5 {[%clk 0:02:50.5]} 22. Nxe5 {[%clk 0:01:48.4]}
22... Bxe5 {[%clk 0:02:37.1]} 23. Nf6+ {[%clk 0:01:43.1]} 23... Bxf6 {[%clk
0:02:37.1]} 24. Bxf6 {[%clk 0:01:44]} 24... Re6 {[%clk 0:02:37.4]} 25. Rxe6
{[%clk 0:01:41.1]} 25... fxe6 {[%clk 0:02:38.3]} 26. Rd1 {[%clk 0:01:24.4]}
26... c5 {[%clk 0:02:30.6]} 27. Qd7 {[%clk 0:01:13.7]} 27... Rc8 {[%clk
0:01:58.1]} 28. Qxe6+ {[%clk 0:01:10.8]} 28... Qf7 {[%clk 0:01:57.6]} 29. Qb6
{[%clk 0:00:55.9]} 29... Rf8 {[%clk 0:01:53.2]} 30. Rd8 {[%clk 0:00:41.5]} 30...
Rxd8 {[%clk 0:01:01.8]} 31. Qxd8+ {[%clk 0:00:42.4]} 31... Qf8 {[%clk
0:01:02.2]} 32. Qb6 {[%clk 0:00:42.2]} 32... bxa4 {[%clk 0:00:53.7]} 33. f3
{[%clk 0:00:35.4]} 33... Qc8 {[%clk 0:00:51.4]} 34. Be5 {[%clk 0:00:24.9]} 34...
Qc6 {[%clk 0:00:45.1]} 35. Qd8+ {[%clk 0:00:24.6]} 35... Kf7 {[%clk 0:00:45.1]}
36. Qh8 {[%clk 0:00:24.7]} 36... Ke6 {[%clk 0:00:43]} 37. c4 {[%clk 0:00:21.7]}
37... Kd7 {[%clk 0:00:24]} 38. Qxh7+ {[%clk 0:00:20.8]} 38... Ke8 {[%clk
0:00:24]} 39. Qg8+ {[%clk 0:00:19.7]} 39... Ke7 {[%clk 0:00:23.6]} 40. Qg7+
{[%clk 0:00:19.6]} 40... Ke8 {[%clk 0:00:23.9]} 41. Kh2 {[%clk 0:00:19.7]} 41...
Qe6 {[%clk 0:00:22.7]} 42. Qc7 {[%clk 0:00:15.9]} 42... Bc8 {[%clk 0:00:21.4]}
43. Qxc5 {[%clk 0:00:15.1]} 43... Bd7 {[%clk 0:00:21.6]} 44. Qd4 {[%clk
0:00:14.9]} 44... Bc6 {[%clk 0:00:17.8]} 45. c5 {[%clk 0:00:14.6]} 45... Qf5
{[%clk 0:00:15.5]} 46. Qd6 {[%clk 0:00:13.9]} 46... Qd7 {[%clk 0:00:15.4]} 47.
Qxg6+ {[%clk 0:00:13.6]} 47... Kd8 {[%clk 0:00:15]} 48. Qg8+ {[%clk 0:00:12.2]}
48... Ke7 {[%clk 0:00:13.6]} 49. Bd6+ {[%clk 0:00:11.9]} 49... Kf6 {[%clk
0:00:13.9]} 50. Qf8+ {[%clk 0:00:10.1]} 50... Ke6 {[%clk 0:00:14]} 51. Qg8+
{[%clk 0:00:08.3]} 51... Kf6 {[%clk 0:00:14.2]} 52. h4 {[%clk 0:00:08.6]} 52...
Qf5 {[%clk 0:00:12.7]} 53. Qf8+ {[%clk 0:00:08.7]} 53... Ke6 {[%clk 0:00:12.7]}
54. Qc8+ {[%clk 0:00:08.3]} 54... Kf6 {[%clk 0:00:11.7]} 55. Qxc6 {[%clk
0:00:07.2]} 55... Qe6 {[%clk 0:00:11.8]} 56. Qe4 {[%clk 0:00:06.9]} 56... Qxe4
{[%clk 0:00:09.2]} 57. fxe4 {[%clk 0:00:07.8]} 1-0

[Event "*** Titled Tuesday Blitz"]
[Site "Chess.com"]
[Date "2020.05.05"]
[Round "10"]
[White "icychess54"]
[Black "Fh2411"]
[Result "1-0"]
[WhiteElo "2325"]
[BlackElo "2439"]
[TimeControl "180+1"]
[EndTime "12:00:16 PDT"]
[Termination "icychess54 won on time"]

1. c4 {[%clk 0:03:00.9]} 1... e6 {[%clk 0:02:58.1]} 2. Nf3 {[%clk 0:03:00.3]}
2... d5 {[%clk 0:02:53.2]} 3. e3 {[%clk 0:02:59.6]} 3... Nf6 {[%clk 0:02:48.9]}
4. Nc3 {[%clk 0:03:00]} 4... Be7 {[%clk 0:02:42.2]} 5. b3 {[%clk 0:03:00.1]}
5... O-O {[%clk 0:02:37.5]} 6. Bb2 {[%clk 0:03:00.1]} 6... b6 {[%clk 0:02:34.6]}
7. Be2 {[%clk 0:02:57]} 7... Bb7 {[%clk 0:02:33.7]} 8. O-O {[%clk 0:02:57.3]}
8... c5 {[%clk 0:02:32.9]} 9. d4 {[%clk 0:02:55.9]} 9... Nbd7 {[%clk 0:02:32.7]}
10. cxd5 {[%clk 0:02:54.9]} 10... Nxd5 {[%clk 0:02:25.8]} 11. Rc1 {[%clk
0:02:52.9]} 11... Nxc3 {[%clk 0:02:17.8]} 12. Bxc3 {[%clk 0:02:52.6]} 12... Bf6
{[%clk 0:02:17.3]} 13. Bb5 {[%clk 0:02:42.4]} 13... cxd4 {[%clk 0:02:11.8]} 14.
Nxd4 {[%clk 0:02:38.6]} 14... Ne5 {[%clk 0:02:03]} 15. f4 {[%clk 0:02:29.3]}
15... Qd5 {[%clk 0:01:56.5]} 16. Qe2 {[%clk 0:02:13.8]} 16... Ng6 {[%clk
0:01:44.4]} 17. Rfd1 {[%clk 0:01:58.7]} 17... Nh4 {[%clk 0:01:21.4]} 18. Nc6
{[%clk 0:01:22.7]} 18... Qe4 {[%clk 0:00:45.8]} 19. Bxf6 {[%clk 0:00:54.5]}
19... gxf6 {[%clk 0:00:44.7]} 20. Bd3 {[%clk 0:00:54.7]} 20... Qxc6 {[%clk
0:00:34.2]} 21. Rxc6 {[%clk 0:00:53.8]} 21... Bxc6 {[%clk 0:00:35.1]} 22. Bxh7+
{[%clk 0:00:53.9]} 22... Kxh7 {[%clk 0:00:31.9]} 23. Qh5+ {[%clk 0:00:54.1]}
23... Kg7 {[%clk 0:00:31.6]} 24. Qxh4 {[%clk 0:00:53.3]} 24... Rh8 {[%clk
0:00:29.9]} 25. Qf2 {[%clk 0:00:41.8]} 25... Rhd8 {[%clk 0:00:19.6]} 26. Rxd8
{[%clk 0:00:37]} 26... Rxd8 {[%clk 0:00:20.5]} 27. Qg3+ {[%clk 0:00:28]} 27...
Kf8 {[%clk 0:00:20.2]} 28. Qh4 {[%clk 0:00:21.6]} 28... Ke7 {[%clk 0:00:20.1]}
29. Qe1 {[%clk 0:00:17.4]} 29... Be4 {[%clk 0:00:19.9]} 30. h4 {[%clk
0:00:16.7]} 30... f5 {[%clk 0:00:19.7]} 31. h5 {[%clk 0:00:14.8]} 31... Rh8
{[%clk 0:00:18.5]} 32. Qe2 {[%clk 0:00:14.5]} 32... Rg8 {[%clk 0:00:18.2]} 33.
Kf1 {[%clk 0:00:11.5]} 33... Kf6 {[%clk 0:00:18.5]} 34. h6 {[%clk 0:00:09.5]}
34... Kg6 {[%clk 0:00:17.1]} 35. h7 {[%clk 0:00:09.1]} 35... Kxh7 {[%clk
0:00:17.3]} 36. Qh5+ {[%clk 0:00:09.6]} 36... Kg7 {[%clk 0:00:17.9]} 37. Qg5+
{[%clk 0:00:10.1]} 37... Kf8 {[%clk 0:00:16.9]} 38. Qd8+ {[%clk 0:00:10.6]}
38... Kg7 {[%clk 0:00:17.5]} 39. Qc7 {[%clk 0:00:11.3]} 39... Kf6 {[%clk
0:00:10]} 40. Qxa7 {[%clk 0:00:11.1]} 40... Rxg2 {[%clk 0:00:09.4]} 41. a4
{[%clk 0:00:10.5]} 41... Rb2 {[%clk 0:00:05.9]} 42. Qxb6 {[%clk 0:00:10.8]}
42... Rb1+ {[%clk 0:00:06.3]} 43. Ke2 {[%clk 0:00:09.7]} 43... Rb2+ {[%clk
0:00:06.7]} 44. Kd1 {[%clk 0:00:09.7]} 44... Rb1+ {[%clk 0:00:07]} 45. Kd2
{[%clk 0:00:10.1]} 45... Rb2+ {[%clk 0:00:05.3]} 46. Kc3 {[%clk 0:00:10.3]}
46... Rc2+ {[%clk 0:00:05.6]} 47. Kb4 {[%clk 0:00:10.8]} 47... Kg6 {[%clk
0:00:04.9]} 48. a5 {[%clk 0:00:11]} 48... Rb2 {[%clk 0:00:05.5]} 49. Ka4 {[%clk
0:00:10.5]} 49... Ra2+ {[%clk 0:00:05.7]} 50. Kb5 {[%clk 0:00:10.6]} 50... Rb2
{[%clk 0:00:05.7]} 51. Ka6 {[%clk 0:00:10.8]} 51... Bd3+ {[%clk 0:00:06]} 52.
Ka7 {[%clk 0:00:10.5]} 52... Ra2 {[%clk 0:00:06]} 53. b4 {[%clk 0:00:10.6]}
53... Rb2 {[%clk 0:00:05.7]} 54. a6 {[%clk 0:00:09.6]} 54... Ra2 {[%clk
0:00:05.7]} 55. Kb7 {[%clk 0:00:08]} 55... Be4+ {[%clk 0:00:03.5]} 56. Kb8
{[%clk 0:00:07.4]} 56... Bd3 {[%clk 0:00:03.8]} 57. a7 {[%clk 0:00:07.5]} 57...
Be4 {[%clk 0:00:04.5]} 58. b5 {[%clk 0:00:07.3]} 58... Rh2 {[%clk 0:00:03.8]}
59. Kc7 {[%clk 0:00:05]} 59... Rh8 {[%clk 0:00:03.5]} 60. Qb8 {[%clk 0:00:05.1]}
1-0

[Event "*** Titled Tuesday Blitz"]
[Site "Chess.com"]
[Date "2020.05.05"]
[Round "10"]
[White "konradrutkowski"]
[Black "124chess"]
[Result "1-0"]
[WhiteElo "2238"]
[BlackElo "2679"]
[TimeControl "180+1"]
[EndTime "12:00:17 PDT"]
[Termination "konradrutkowski won by resignation"]

1. e4 {[%clk 0:03:00.9]} 1... d5 {[%clk 0:02:59.4]} 2. exd5 {[%clk 0:03:00.5]}
2... Qxd5 {[%clk 0:03:00.3]} 3. Nc3 {[%clk 0:03:00.4]} 3... Qd6 {[%clk 0:03:00]}
4. d4 {[%clk 0:02:56.7]} 4... Nf6 {[%clk 0:03:00.4]} 5. Nf3 {[%clk 0:02:56]}
5... c6 {[%clk 0:03:00.1]} 6. Ne5 {[%clk 0:02:55.7]} 6... Nbd7 {[%clk 0:03:00]}
7. f4 {[%clk 0:02:52.4]} 7... Nb6 {[%clk 0:02:56.3]} 8. Be2 {[%clk 0:02:47.9]}
8... g6 {[%clk 0:02:55.1]} 9. O-O {[%clk 0:02:45.8]} 9... Bg7 {[%clk 0:02:55.1]}
10. Bf3 {[%clk 0:02:34.7]} 10... O-O {[%clk 0:02:55.6]} 11. a4 {[%clk 0:02:13]}
11... Rd8 {[%clk 0:02:53]} 12. Be3 {[%clk 0:02:07.3]} 12... Be6 {[%clk
0:02:53.5]} 13. g3 {[%clk 0:01:42.5]} 13... Nbd5 {[%clk 0:02:50.7]} 14. Bf2
{[%clk 0:01:40.6]} 14... Nxc3 {[%clk 0:02:49.4]} 15. bxc3 {[%clk 0:01:40.5]}
15... Bd5 {[%clk 0:02:50.3]} 16. Re1 {[%clk 0:01:34.8]} 16... Bxf3 {[%clk
0:02:48.8]} 17. Qxf3 {[%clk 0:01:35.7]} 17... e6 {[%clk 0:02:49.6]} 18. a5
{[%clk 0:01:31.7]} 18... Qd5 {[%clk 0:02:44.8]} 19. Reb1 {[%clk 0:01:29.7]}
19... Qxf3 {[%clk 0:02:43.2]} 20. Nxf3 {[%clk 0:01:29.2]} 20... Rab8 {[%clk
0:02:38.3]} 21. Ne5 {[%clk 0:01:28]} 21... Ne4 {[%clk 0:02:37.3]} 22. Rb3 {[%clk
0:01:22]} 22... a6 {[%clk 0:02:16.5]} 23. Be3 {[%clk 0:01:15.5]} 23... c5 {[%clk
0:01:58.4]} 24. Kg2 {[%clk 0:01:10.5]} 24... cxd4 {[%clk 0:01:50.8]} 25. cxd4
{[%clk 0:01:09.8]} 25... Rbc8 {[%clk 0:01:51.2]} 26. Kf3 {[%clk 0:01:05.7]}
26... Nd6 {[%clk 0:01:45.1]} 27. c3 {[%clk 0:00:56.5]} 27... Bxe5 {[%clk
0:01:39.4]} 28. fxe5 {[%clk 0:00:56.4]} 28... Nb5 {[%clk 0:01:39.7]} 29. Bd2
{[%clk 0:00:39.7]} 29... Rxd4 {[%clk 0:01:36.3]} 30. Rxb5 {[%clk 0:00:28.1]}
30... Rxd2 {[%clk 0:01:35.5]} 31. Rxb7 {[%clk 0:00:28.6]} 31... Rxc3+ {[%clk
0:01:33.2]} 32. Kg4 {[%clk 0:00:28.6]} 32... h5+ {[%clk 0:01:13.5]} 33. Kg5
{[%clk 0:00:27.9]} 33... Rd5 {[%clk 0:00:53.7]} 34. Rf1 {[%clk 0:00:19.8]} 34...
Rxe5+ {[%clk 0:00:26.5]} 35. Kh6 {[%clk 0:00:19.4]} 35... f5 {[%clk 0:00:18.5]}
36. Kxg6 {[%clk 0:00:14.6]} 36... Kf8 {[%clk 0:00:17.7]} 37. Kf6 {[%clk
0:00:13.9]} 37... Rb5 {[%clk 0:00:14.9]} 38. Rh7 {[%clk 0:00:09]} 38... Kg8
{[%clk 0:00:11.8]} 39. Rg7+ {[%clk 0:00:08.4]} 39... Kh8 {[%clk 0:00:11.5]} 40.
Rd1 {[%clk 0:00:08.3]} 40... Rd5 {[%clk 0:00:11]} 41. Rb1 {[%clk 0:00:07.8]}
41... Rb5 {[%clk 0:00:08.1]} 42. Rxb5 {[%clk 0:00:06.7]} 42... axb5 {[%clk
0:00:07.9]} 43. a6 {[%clk 0:00:07.2]} 43... Ra3 {[%clk 0:00:07.9]} 44. a7 {[%clk
0:00:07.1]} 44... f4 {[%clk 0:00:06.2]} 45. gxf4 {[%clk 0:00:05.1]} 45... b4
{[%clk 0:00:06.5]} 46. Rb7 {[%clk 0:00:04.1]} 46... b3 {[%clk 0:00:07.1]} 47.
Rb8+ {[%clk 0:00:04.4]} 47... Kh7 {[%clk 0:00:07.2]} 48. a8=Q {[%clk 0:00:05.3]}
48... Rxa8 {[%clk 0:00:07]} 49. Rxa8 {[%clk 0:00:06.2]} 49... h4 {[%clk
0:00:07.6]} 50. Rb8 {[%clk 0:00:07.1]} 50... b2 {[%clk 0:00:08.5]} 51. Rxb2
{[%clk 0:00:07.2]} 51... Kh6 {[%clk 0:00:09.4]} 52. Rb3 {[%clk 0:00:08.1]} 52...
Kh5 {[%clk 0:00:09.6]} 53. Kxe6 {[%clk 0:00:07.7]} 53... Kg4 {[%clk 0:00:09.7]}
54. f5 {[%clk 0:00:08.6]} 1-0

[Event "*** Titled Tuesday Blitz"]
[Site "Chess.com"]
[Date "2020.05.05"]
[Round "10"]
[White "ozates"]
[Black "norwaytoadog"]
[Result "0-1"]
[WhiteElo "2368"]
[BlackElo "2213"]
[TimeControl "180+1"]
[EndTime "12:00:17 PDT"]
[Termination "norwaytoadog won by resignation"]

1. e4 {[%clk 0:03:00.6]} 1... c5 {[%clk 0:02:59.3]} 2. Nf3 {[%clk 0:03:00.1]}
2... d6 {[%clk 0:02:59.4]} 3. d4 {[%clk 0:02:59.6]} 3... cxd4 {[%clk 0:02:59.4]}
4. Nxd4 {[%clk 0:02:57.7]} 4... Nf6 {[%clk 0:02:59.7]} 5. f3 {[%clk 0:02:57.8]}
5... e5 {[%clk 0:02:56.2]} 6. Nb5 {[%clk 0:02:58]} 6... a6 {[%clk 0:02:47.9]} 7.
N5c3 {[%clk 0:02:47.5]} 7... Be6 {[%clk 0:02:41.4]} 8. Bg5 {[%clk 0:02:45.3]}
8... Be7 {[%clk 0:02:32.3]} 9. Nd2 {[%clk 0:02:43.9]} 9... b5 {[%clk 0:02:12.7]}
10. Bxf6 {[%clk 0:02:34.1]} 10... Bxf6 {[%clk 0:01:59.2]} 11. Nd5 {[%clk
0:02:30.9]} 11... Nd7 {[%clk 0:01:50.3]} 12. c4 {[%clk 0:02:30.3]} 12... Bxd5
{[%clk 0:01:40.1]} 13. exd5 {[%clk 0:02:23.5]} 13... Qb6 {[%clk 0:01:29.3]} 14.
cxb5 {[%clk 0:02:21.5]} 14... axb5 {[%clk 0:01:26]} 15. a4 {[%clk 0:02:20.7]}
15... bxa4 {[%clk 0:01:16]} 16. Rxa4 {[%clk 0:02:18.7]} 16... Rb8 {[%clk
0:01:10.8]} 17. Nc4 {[%clk 0:02:10.5]} 17... Qc5 {[%clk 0:01:07]} 18. Ra5 {[%clk
0:02:04.5]} 18... Qb4+ {[%clk 0:01:05.2]} 19. Qd2 {[%clk 0:02:04.4]} 19... O-O
{[%clk 0:00:59.7]} 20. Bd3 {[%clk 0:02:01.6]} 20... Nc5 {[%clk 0:00:55.8]} 21.
Ra3 {[%clk 0:01:48.8]} 21... Nxd3+ {[%clk 0:00:50.1]} 22. Rxd3 {[%clk
0:01:49.7]} 22... Qxc4 {[%clk 0:00:49.4]} 23. O-O {[%clk 0:01:50.3]} 23... Rxb2
{[%clk 0:00:48.1]} 24. Qe3 {[%clk 0:01:48.5]} 24... Rc8 {[%clk 0:00:45.2]} 25.
Rd2 {[%clk 0:01:41]} 25... Rxd2 {[%clk 0:00:35.5]} 26. Qxd2 {[%clk 0:01:38.8]}
26... Qd4+ {[%clk 0:00:35.7]} 27. Qxd4 {[%clk 0:01:39]} 27... exd4 {[%clk
0:00:36.1]} 28. Rd1 {[%clk 0:01:39.9]} 28... g6 {[%clk 0:00:35.7]} 29. Kf2
{[%clk 0:01:39.6]} 29... Rc5 {[%clk 0:00:35.2]} 30. Ke2 {[%clk 0:01:39]} 30...
Rxd5 {[%clk 0:00:35.6]} 31. Kd3 {[%clk 0:01:39.9]} 31... Rc5 {[%clk 0:00:35.2]}
32. Ke4 {[%clk 0:01:40.4]} 32... d5+ {[%clk 0:00:34.5]} 33. Kf4 {[%clk
0:01:40.6]} 33... Kg7 {[%clk 0:00:33]} 34. g4 {[%clk 0:01:40.6]} 34... h6 {[%clk
0:00:32.2]} 35. h4 {[%clk 0:01:39.8]} 35... Rc4 {[%clk 0:00:30.1]} 36. Rd3
{[%clk 0:01:36.6]} 36... Rc3 {[%clk 0:00:29.5]} 37. Rd1 {[%clk 0:01:34]} 37...
d3 {[%clk 0:00:28.9]} 38. g5 {[%clk 0:01:33.7]} 38... hxg5+ {[%clk 0:00:28.7]}
39. hxg5 {[%clk 0:01:34.6]} 39... Bd4 {[%clk 0:00:27.9]} 40. Rd2 {[%clk
0:01:35.1]} 40... Ra3 {[%clk 0:00:25.8]} 41. Rd1 {[%clk 0:01:35.3]} 41... f6
{[%clk 0:00:25.6]} 42. Rd2 {[%clk 0:01:31.2]} 42... fxg5+ {[%clk 0:00:25.2]} 43.
Kg4 {[%clk 0:01:31.7]} 43... Kf6 {[%clk 0:00:25]} 44. f4 {[%clk 0:01:28.9]}
44... gxf4 {[%clk 0:00:23.6]} 45. Kxf4 {[%clk 0:01:29.8]} 45... Be5+ {[%clk
0:00:21.9]} 46. Ke3 {[%clk 0:01:29]} 46... d4+ {[%clk 0:00:21.5]} 47. Ke4 {[%clk
0:01:28.6]} 47... Ra5 {[%clk 0:00:18.8]} 48. Rxd3 {[%clk 0:01:27.1]} 48... Rc5
{[%clk 0:00:18]} 49. Rf3+ {[%clk 0:01:25.1]} 49... Ke6 {[%clk 0:00:18.3]} 50.
Rf8 {[%clk 0:01:25]} 50... Bg7 {[%clk 0:00:15.6]} 51. Re8+ {[%clk 0:01:22.6]}
51... Kf7 {[%clk 0:00:15.8]} 52. Rd8 {[%clk 0:01:22.6]} 52... Rc7 {[%clk
0:00:13.8]} 53. Kf4 {[%clk 0:01:18.7]} 53... Re7 {[%clk 0:00:13.3]} 54. Rd5
{[%clk 0:01:17.3]} 54... Re5 {[%clk 0:00:12.1]} 55. Rd7+ {[%clk 0:01:15.7]}
55... Re7 {[%clk 0:00:12.4]} 56. Rd5 {[%clk 0:01:15.4]} 56... Ke6 {[%clk
0:00:12.6]} 57. Rd8 {[%clk 0:01:11.8]} 57... Rd7 {[%clk 0:00:12.1]} 58. Re8+
{[%clk 0:01:11.8]} 58... Kf7 {[%clk 0:00:12.2]} 59. Re1 {[%clk 0:01:11.3]} 59...
d3 {[%clk 0:00:12.5]} 60. Ke3 {[%clk 0:01:07.6]} 60... d2 {[%clk 0:00:12.6]} 61.
Rd1 {[%clk 0:01:08.1]} 61... Bh6+ {[%clk 0:00:12.8]} 62. Ke2 {[%clk 0:01:08.1]}
62... Rc7 {[%clk 0:00:12.8]} 63. Rf1+ {[%clk 0:01:07.4]} 63... Kg7 {[%clk
0:00:13]} 64. Ra1 {[%clk 0:01:05.4]} 64... Rc1 {[%clk 0:00:12.8]} 65. Ra7+
{[%clk 0:01:05]} 65... Kf6 {[%clk 0:00:13.1]} 66. Ra6+ {[%clk 0:01:05.1]} 66...
Kf5 {[%clk 0:00:13.5]} 67. Ra5+ {[%clk 0:01:05.1]} 67... Kg4 {[%clk 0:00:13.9]}
68. Ra4+ {[%clk 0:01:04.8]} 68... Bf4 {[%clk 0:00:14.1]} 69. Rd4 {[%clk
0:01:01]} 69... d1=Q+ {[%clk 0:00:13.6]} 70. Rxd1 {[%clk 0:01:01.9]} 70... Rxd1
{[%clk 0:00:14]} 71. Kxd1 {[%clk 0:01:02.8]} 71... Kf3 {[%clk 0:00:14.2]} 72.
Ke1 {[%clk 0:01:03.7]} 72... Be3 {[%clk 0:00:14.2]} 73. Kf1 {[%clk 0:01:04.6]}
73... g5 {[%clk 0:00:14.4]} 74. Ke1 {[%clk 0:01:05]} 74... g4 {[%clk 0:00:14.7]}
75. Kf1 {[%clk 0:01:05.9]} 75... g3 {[%clk 0:00:14.6]} 76. Ke1 {[%clk
0:01:06.4]} 76... g2 {[%clk 0:00:14.9]} 77. Kd1 {[%clk 0:01:07.3]} 77... g1=Q+
{[%clk 0:00:15.3]} 78. Kc2 {[%clk 0:01:08.2]} 78... Qf2+ {[%clk 0:00:15.7]} 79.
Kc3 {[%clk 0:01:09.1]} 79... Qa2 {[%clk 0:00:15.7]} 80. Kb4 {[%clk 0:01:08.2]}
80... Qb2+ {[%clk 0:00:16]} 81. Ka4 {[%clk 0:01:07.8]} 81... Qb6 {[%clk
0:00:15.6]} 82. Ka3 {[%clk 0:01:07]} 82... Bd4 {[%clk 0:00:15.7]} 83. Ka4 {[%clk
0:01:06.7]} 83... Bc3 {[%clk 0:00:15.9]} 84. Ka3 {[%clk 0:01:06.6]} 84... Qb4+
{[%clk 0:00:16.3]} 85. Ka2 {[%clk 0:01:07.5]} 0-1